Workbook

Sheet REMODEL COSTS
B1: KITCHEN REMODEL COSTS WORKSHEET
B3: Category | C3: Items | D3: Quantity | E3: Estimated Cost | F3: Actual Cost | G3: Total Estimated Cost | H3: Total Actual Cost
B4: Cabinets | C4: Base cabinets: Modular-Standard (qty in linear feet) | D4: 25 | E4: $5.00 | G4: =Data[[#This Row],[Quantity]]*Data[[#This Row],[Estimated Cost]] -> $125 | H4: =Data[[#This Row],[Quantity]]*Data[[#This Row],[Actual Cost]] -> $0
B5: Cabinets | C5: Upper cabinets: Modular-Standard (qty in linear feet) | D5: 25 | E5: $3.50 | G5: =Data[[#This Row],[Quantity]]*Data[[#This Row],[Estimated Cost]] -> $88 | H5: =Data[[#This Row],[Quantity]]*Data[[#This Row],[Actual Cost]] -> $0
B6: Cleaning Appliances | C6: Dishwasher: Standard | D6: 1 | E6: $250.00 | G6: =Data[[#This Row],[Quantity]]*Data[[#This Row],[Estimated Cost]] -> $250 | H6: =Data[[#This Row],[Quantity]]*Data[[#This Row],[Actual Cost]] -> $0
B7: Cleaning Appliances | C7: Disposal: Standard | D7: 1 | E7: $175.00 | G7: =Data[[#This Row],[Quantity]]*Data[[#This Row],[Estimated Cost]] -> $175 | H7: =Data[[#This Row],[Quantity]]*Data[[#This Row],[Actual Cost]] -> $0
B8: Cooking Appliances | C8: Range: Slide-in Standard | D8: 1 | E8: $375.00 | G8: =Data[[#This Row],[Quantity]]*Data[[#This Row],[Estimated Cost]] -> $375 | H8: =Data[[#This Row],[Quantity]]*Data[[#This Row],[Actual Cost]] -> $0
B9: Cooking Appliances | C9: Microwave: Standard | D9: 1 | E9: $300.00 | G9: =Data[[#This Row],[Quantity]]*Data[[#This Row],[Estimated Cost]] -> $300 | H9: =Data[[#This Row],[Quantity]]*Data[[#This Row],[Actual Cost]] -> $0
B10: Counters | C10: Solid surface (quantity in linear feet) | D10: 23 | E10: $10.00 | G10: =Data[[#This Row],[Quantity]]*Data[[#This Row],[Estimated Cost]] -> $230 | H10: =Data[[#This Row],[Quantity]]*Data[[#This Row],[Actual Cost]] -> $0
B11: Doors | C11: Interior: Veneered Solidcore | D11: 1 | E11: $65.00 | G11: =Data[[#This Row],[Quantity]]*Data[[#This Row],[Estimated Cost]] -> $65 | H11: =Data[[#This Row],[Quantity]]*Data[[#This Row],[Actual Cost]] -> $0
B12: Extras | C12: Extras: Instant Hot Water Standard | D12: 1 | E12: $120.00 | G12: =Data[[#This Row],[Quantity]]*Data[[#This Row],[Estimated Cost]] -> $120 | H12: =Data[[#This Row],[Quantity]]*Data[[#This Row],[Actual Cost]] -> $0
B13: Extras | C13: Extras: Soap Dispenser | D13: 1 | E13: $40.00 | G13: =Data[[#This Row],[Quantity]]*Data[[#This Row],[Estimated Cost]] -> $40 | H13: =Data[[#This Row],[Quantity]]*Data[[#This Row],[Actual Cost]] -> $0
B14: Faucets | C14: Faucet: Lever, Standard | D14: 1 | E14: $130.00 | G14: =Data[[#This Row],[Quantity]]*Data[[#This Row],[Estimated Cost]] -> $130 | H14: =Data[[#This Row],[Quantity]]*Data[[#This Row],[Actual Cost]] -> $0
B15: Flooring | C15: Laminate (quantity in square feet) | D15: 165 | E15: $3.50 | G15: =Data[[#This Row],[Quantity]]*Data[[#This Row],[Estimated Cost]] -> $578 | H15: =Data[[#This Row],[Quantity]]*Data[[#This Row],[Actual Cost]] -> $0
B16: Laundry Appliances | C16: Washer: Standard | D16: 1 | E16: $500.00 | G16: =Data[[#This Row],[Quantity]]*Data[[#This Row],[Estimated Cost]] -> $500 | H16: =Data[[#This Row],[Quantity]]*Data[[#This Row],[Actual Cost]] -> $0
B17: Laundry Appliances | C17: Dryer: Standard | D17: 1 | E17: $375.00 | G17: =Data[[#This Row],[Quantity]]*Data[[#This Row],[Estimated Cost]] -> $375 | H17: =Data[[#This Row],[Quantity]]*Data[[#This Row],[Actual Cost]] -> $0
B18: Lighting | C18: Lighting: Recessed Can | D18: 4 | E18: $35.00 | G18: =Data[[#This Row],[Quantity]]*Data[[#This Row],[Estimated Cost]] -> $140 | H18: =Data[[#This Row],[Quantity]]*Data[[#This Row],[Actual Cost]] -> $0
B19: Refrigerators | C19: Refrigerator: Freestanding, Luxury | D19: 1 | E19: $1,200.00 | G19: =Data[[#This Row],[Quantity]]*Data[[#This Row],[Estimated Cost]] -> $1,200 | H19: =Data[[#This Row],[Quantity]]*Data[[#This Row],[Actual Cost]] -> $0
B20: Sinks | C20: Double-bowl Stainless Steel Luxury | D20: 1 | E20: $125.00 | G20: =Data[[#This Row],[Quantity]]*Data[[#This Row],[Estimated Cost]] -> $125 | H20: =Data[[#This Row],[Quantity]]*Data[[#This Row],[Actual Cost]] -> $0
B21: Ventilation | C21: Hood unit: Ducted Standard | D21: 1 | E21: $180.00 | G21: =Data[[#This Row],[Quantity]]*Data[[#This Row],[Estimated Cost]] -> $180 | H21: =Data[[#This Row],[Quantity]]*Data[[#This Row],[Actual Cost]] -> $0
B22: Walls | C22: Wallboard (quantity in square feet) | D22: 70 | E22: $2.00 | G22: =Data[[#This Row],[Quantity]]*Data[[#This Row],[Estimated Cost]] -> $140 | H22: =Data[[#This Row],[Quantity]]*Data[[#This Row],[Actual Cost]] -> $0
B23: Windows | C23: Sliding | D23: 2 | E23: $120.00 | G23: =Data[[#This Row],[Quantity]]*Data[[#This Row],[Estimated Cost]] -> $240 | H23: =Data[[#This Row],[Quantity]]*Data[[#This Row],[Actual Cost]] -> $0
B24: Other | G24: =Data[[#This Row],[Quantity]]*Data[[#This Row],[Estimated Cost]] -> $0 | H24: =Data[[#This Row],[Quantity]]*Data[[#This Row],[Actual Cost]] -> $0
B25: Total | E25: =SUBTOTAL(109,Data[Estimated Cost]) -> $4,014.00 | F25: =SUBTOTAL(109,Data[Actual Cost]) -> $0.00 | G25: =SUBTOTAL(109,Data[Total Estimated Cost]) -> $5,375.00 | H25: =SUBTOTAL(109,Data[Total Actual Cost]) -> $0.00
F26: Subtotal | G26: =SUBTOTAL(109,Data[Total Estimated Cost]) -> $5,375.00 | H26: =SUBTOTAL(109,Data[Total Actual Cost]) -> $0.00
F27: Unexpected Costs - Add 30% | G27: =G26*0.3 -> $1,612.50 | H27: =H26*0.3 -> $0.00
F28: Total | G28: =SUM(G26:G27) -> $6,987.50 | H28: =SUM(H26:H27) -> $0.00
